bitfinex/quotes_SOLUSD_20250908
["timestamp","ask_amount","ask_price","bid_price","bid_amount"]
[1757358941546,13.59559401,215.86,215.77,0.44]
[1757358941843,3.16789889,215.88,215.77,0.44]
[1757358942051,13.59559401,215.87,215.79,26.0]
[1757358942367,18.22740037,215.9,215.81,4.63370557]
[1757358942548,18.22740037,215.9,215.82,0.44]
[1757358942945,13.59559401,215.9,215.82,0.44]
[1757358944264,13.59559401,215.9,215.83,16.21646665]
[1757358944851,13.59559401,215.9,215.83,16.65646665]
[1757358945060,13.59559401,215.88,215.83,4.63327618]
[1757358945374,13.59559401,215.86,215.83,36.52]
[1757358945748,0.71,215.85,215.8,26.0]
[1757358946070,13.59559401,215.84,215.8,26.0]
[1757358946266,13.06722918,215.84,215.8,26.0]
[1757358946470,4.63271182,215.86,215.8,4.63382252]
[1757358947552,0.71,215.85,215.79,4.63413503]
[1757358947751,0.71,215.84,215.78,36.52]
[1757358948160,134.5,215.89,215.78,36.52]
[1757358948361,13.59559401,215.86,215.79,0.44]
[1757358948567,13.59559401,215.86,215.81,26.0]
[1757358948568,13.44656824,215.86,215.81,26.0]
[1757358948772,13.44656824,215.86,215.82,0.44]
[1757358949070,13.44656824,215.86,215.83,0.44]
[1757358949368,135.21,215.89,215.81,26.0]
[1757358949751,135.21,215.89,215.82,4.63349087]
[1757358950173,146.93905439,215.89,215.81,26.0]
[1757358950362,0.71,215.88,215.81,26.0]
[1757358950564,13.59559401,215.87,215.81,26.0]
[1757358950763,13.59559401,215.87,215.81,30.63366305]
[1757358951076,13.59559401,215.85,215.81,30.63366305]
[1757358951273,0.71,215.85,215.81,30.63366305]
[1757358951653,14.30559401,215.85,215.81,30.63366305]
[1757358951979,13.59559401,215.84,215.81,30.63366305]
[1757358952357,13.59559401,215.84,215.81,4.63366305]
[1757358952778,13.59559401,215.84,215.79,4.63413503]
[1757358953373,0.71,215.85,215.79,4.63413503]
[1757358953572,0.71,215.85,215.79,16.21947262]
[1757358953768,18.22801884,215.87,215.79,16.65947262]
[1757358953769,13.59559401,215.87,215.79,16.65947262]
[1757358954277,13.59559401,215.85,215.79,16.65947262]
[1757358954873,13.59559401,215.85,215.81,0.03]
[1757358955182,0.71,215.85,215.81,0.03]
[1757358957076,13.59559401,215.84,215.81,0.03]
[1757358957455,0.71,215.87,215.81,0.03]
[1757358959280,5.34246696,215.87,215.82,36.52]
[1757358959476,13.59559401,215.85,215.82,36.52]
[1757358959658,0.71,215.84,215.82,36.52]
[1757358960982,13.59559401,215.83,215.82,36.52]
[1757358961666,14.30559401,215.86,215.82,41.15349087]
[1757358961865,0.71,215.85,215.82,41.15349087]
[1757358962658,13.59559401,215.86,215.82,36.52]
[1757358962659,4.63268092,215.86,215.82,36.52]
[1757358962865,13.59559401,215.84,215.82,36.52]
[1757358963079,14.30559401,215.84,215.82,36.52]
[1757358963474,0.71,215.83,215.81,0.03]
[1757358963673,0.71,215.83,215.82,36.52]
[1757358964083,0.71,215.83,215.81,0.03]
[1757358964084,13.59559401,215.82,215.81,0.03]
[1757358964493,14.30559401,215.82,215.81,0.03]
[1757358964783,18.93908488,215.82,215.81,0.03]
[1757358966390,14.30559401,215.82,215.81,0.03]
[1757358967085,13.59559401,215.84,215.81,0.03]
[1757358967389,3.17374192,215.87,215.81,0.47]
[1757358967390,13.59559401,215.87,215.81,0.47]
[1757358967691,0.06,215.9,215.82,26.0]
[1757358967994,13.65559401,215.9,215.82,26.44]
[1757358968287,13.65559401,215.9,215.83,16.21646665]
[1757358968471,13.65559401,215.9,215.84,36.52]
[1757358969097,0.77,215.9,215.84,36.52]
[1757358969291,13.59559401,215.88,215.84,36.52]
[1757358970165,13.59559401,215.86,215.84,41.15285955]
[1757358970367,13.59559401,215.86,215.84,4.63285955]
[1757358970591,7.8059958,215.88,215.85,36.52]
[1757358970971,7.8059958,215.88,215.81,0.03]
[1757358970972,7.8059958,215.86,215.81,0.03]
[1757358971186,21.40158981,215.85,215.81,36.55]
[1757358971399,13.59559401,215.87,215.81,41.18366007]
[1757358971606,13.28791403,215.87,215.81,41.18366007]
[1757358971781,13.28791403,215.87,215.81,52.767924]
[1757358971981,0.06,215.9,215.82,0.44]
[1757358972212,0.06,215.9,215.83,16.21646665]
[1757358972783,7.8059958,215.87,215.82,4.63337546]
[1757358972991,0.66,215.86,215.82,4.63337546]
[1757358973223,0.66,215.85,215.82,4.63337546]
[1757358973681,14.31559401,215.9,215.82,16.21710264]
[1757358973882,0.06,215.86,215.82,16.65710264]
[1757358974301,0.06,215.86,215.83,0.44]
[1757358974499,0.06,215.86,215.84,0.44]
[1757358974723,0.06,215.89,215.85,26.0]
[1757358974886,0.06,215.93,215.86,36.52]
[1757358975090,0.06,215.93,215.89,26.0]
[1757358975502,0.06,215.93,215.9,0.44]
[1757358975686,0.06,215.93,215.91,36.52]
[1757358975884,0.06,215.93,215.89,26.44]
[1757358976084,0.06,215.93,215.92,36.52]
[1757358976312,0.06,215.93,215.92,41.15134494]
[1757358977099,0.06,215.93,215.92,36.52]
[1757358977297,14.31559401,215.93,215.92,36.52]
[1757358977523,13.59559401,215.92,215.88,4.63207404]
[1757358977700,14.25559401,215.92,215.89,36.52]
[1757358978103,13.59559401,215.9,215.89,36.52]
[1757358978592,13.65559401,215.93,215.89,36.5]
[1757358978799,0.66,215.9,215.87,36.5]
[1757358979013,13.59559401,215.88,215.87,36.5]
[1757358979216,14.25559401,215.88,215.87,36.5]
[1757358979708,13.59559401,215.9,215.87,36.5]
[1757358979890,13.59559401,215.88,215.87,36.5]
[1757358980091,0.66,215.9,215.87,36.5]
[1757358980291,13.59559401,215.88,215.87,36.5]
[1757358980491,0.66,215.9,215.87,41.13241765]
[1757358980713,13.59559401,215.88,215.87,41.13241765]
[1757358981513,134.5,215.91,215.82,4.63347643]
[1757358981719,13.59559401,215.82,215.81,0.03]
[1757358981913,17.05106313,215.82,215.81,0.03]
[1757358982224,17.71151974,215.82,215.81,0.03]
[1757358982718,30.15100641,215.82,215.81,0.03]
[1757358982890,25.51751554,215.82,215.81,0.03]
[1757358983092,17.71218259,215.82,215.81,0.03]
[1757358985833,22.34567346,215.82,215.81,0.03]
[1757358985997,17.71218259,215.82,215.81,0.03]
[1757358987024,34.00761018,215.82,215.76,0.03]
[1757358987196,25.25753073,215.77,215.76,0.03]
[1757358987400,28.71411931,215.77,215.76,0.03]
[1757358987616,17.71218259,215.77,215.76,0.03]
[1757358989610,22.34674717,215.77,215.76,0.03]
[1757358989799,34.00868389,215.77,215.76,0.03]
[1757358990201,13.59559401,215.76,215.5,53.34]
[1757358990411,13.59559401,215.69,215.59,0.44]
[1757358990614,13.59559401,215.7,215.59,0.44]
[1757358990816,4.10559804,215.69,215.59,0.44]
[1757358991011,13.59559401,215.72,215.59,0.44]
[1757358991216,13.59559401,215.72,215.62,26.0]
[1757358991531,13.59559401,215.72,215.63,37.18]
[1757358991715,13.59559401,215.7,215.64,36.74]
[1757358992228,4.63544074,215.73,215.64,36.74]
[1757358992229,13.59559401,215.73,215.67,26.0]
[1757358992427,13.59559401,215.73,215.68,0.44]
[1757358992621,13.59559401,215.74,215.69,0.44]
[1757358992815,13.59559401,215.74,215.7,36.78]
[1757358993026,14.25559401,215.74,215.71,36.78]
[1757358993343,14.25559401,215.74,215.71,41.41570639]
[1757358993914,13.59559401,215.74,215.71,41.41570639]
[1757358994213,13.59559401,215.74,215.72,0.44]
[1757358994411,13.59559401,215.74,215.71,53.00534062]
[1757358994633,13.59559401,215.74,215.71,53.44534062]
[1757358994842,0.66,215.73,215.71,36.78]
[1757358995014,13.59559401,215.74,215.71,36.78]
[1757358995214,13.59559401,215.74,215.71,41.41570386]
[1757358996620,0.66,215.73,215.71,41.41570386]
[1757358996830,13.59559401,215.74,215.71,41.41570386]
[1757358997033,14.25559401,215.74,215.71,41.41570386]
[1757358997641,13.59559401,215.74,215.71,41.41570386]
[1757358998120,13.59559401,215.8,215.72,0.44]
[1757358998345,12.32193672,215.88,215.74,26.0]
[1757358998550,0.66,215.87,215.75,0.44]
[1757358998723,3.078627,215.87,215.76,36.82]
[1757358998925,13.59559401,215.84,215.77,36.82]
[1757358999146,13.59559401,215.82,215.77,36.82]
[1757358999343,13.59559401,215.8,215.78,4.6343498]
[1757358999722,13.59559401,215.86,215.78,5.0743498]
[1757358999927,13.59559401,215.86,215.78,16.6602243]
[1757359000336,13.59559401,215.86,215.78,16.2202243]
[1757359000645,13.59559401,215.84,215.78,16.2202243]
[1757359000848,13.59559401,215.86,215.78,16.6602243]
[1757359001751,13.59559401,215.84,215.79,36.8]
[1757359001952,14.24559401,215.84,215.78,30.6343498]
[1757359002140,14.24559401,215.84,215.78,4.6343498]
[1757359002344,14.24559401,215.84,215.79,36.8]
[1757359002951,13.59559401,215.86,215.8,0.44]
[1757359003434,13.59559401,215.86,215.84,26.0]
[1757359003631,13.59559401,215.9,215.85,36.8]
[1757359003833,13.59559401,215.91,215.85,36.8]
[1757359004142,0.06,215.93,215.85,37.24]
[1757359004340,0.06,215.93,215.88,26.0]
[1757359004754,0.06,215.93,215.89,0.44]
[1757359004964,0.06,215.96,215.93,26.0]
[1757359005339,0.06,216.01,215.94,0.44]
[1757359005545,0.06,216.01,215.97,26.0]
[1757359005945,0.06,216.01,215.97,26.44]
[1757359006239,0.06,216.01,215.97,26.0]
[1757359007248,0.06,216.01,215.97,62.9]
[1757359007433,0.06,216.01,215.97,67.53027272]
[1757359007956,0.06,216.01,215.97,67.97027272]
[1757359008162,1e-08,215.98,215.97,67.93027272]
[1757359009739,0.06,216.01,215.97,67.93027272]
[1757359009932,0.06,216.01,215.98,0.44]
[1757359010137,0.06,216.01,215.99,0.44]
[1757359010340,13.59559401,216.0,215.97,42.20595452]
[1757359010545,13.59559401,216.0,215.98,36.84]
[1757359010743,0.06,216.01,215.97,16.20595452]
[1757359010955,0.06,216.01,215.99,36.88]
[1757359011136,13.59559401,216.0,215.99,36.88]
[1757359011642,0.06,216.01,215.99,41.50984397]
[1757359012369,0.06,216.01,215.99,4.62984397]
[1757359012548,0.65,216.0,215.97,30.63009031]
[1757359012755,14.24559401,215.99,215.98,36.88]
[1757359013555,13.59559401,215.99,215.98,36.88]
[1757359013737,13.59559401,215.99,215.98,41.51005833]
[1757359014943,13.59559401,215.98,215.9,4.63177396]
[1757359015149,14.24559401,215.98,215.91,36.86]
[1757359015349,14.24559401,215.98,215.94,26.0]
[1757359015546,13.59559401,215.96,215.95,36.86]
[1757359015759,13.59559401,215.96,215.95,4.63070155]
[1757359015957,4.68943533,216.01,215.95,41.49070155]
[1757359016137,0.65,215.96,215.94,26.0]
[1757359016456,0.65,215.96,215.95,36.84]
[1757359016963,0.65,215.96,215.92,11.57836235]
[1757359016964,0.65,215.96,215.93,4.63113045]
[1757359017266,0.65,215.95,215.91,4.6315382]
[1757359017564,0.65,215.94,215.92,36.84]
[1757359017749,13.59559401,215.96,215.93,36.84]
[1757359018256,13.59559401,215.94,215.93,36.84]
[1757359018442,0.65,215.94,215.93,36.84]
[1757359020164,0.65,215.94,215.93,41.47113045]
[1757359020370,13.59559401,215.96,215.93,41.47113045]
[1757359020666,13.59559401,215.96,215.93,53.04895659]
[1757359021161,13.59559401,215.96,215.95,26.0]
[1757359021367,13.59559401,215.96,215.95,26.44]
[1757359021545,0.06,216.01,215.96,26.0]
[1757359021745,0.06,216.01,216.0,26.0]
[1757359021964,0.06,216.01,216.0,67.46962962]
[1757359023453,14.30559401,216.01,216.0,67.46962962]
[1757359023658,13.65559401,216.01,216.0,67.46962962]
[1757359024058,13.65559401,216.01,216.0,41.46962962]
[1757359024969,13.65559401,216.01,216.0,41.42962962]
[1757359025268,14.30559401,216.01,216.0,4.62962962]
[1757359025450,13.59559401,216.0,215.95,11.5765635]
[1757359025651,13.59559401,216.0,215.96,36.78]
[1757359025850,0.65,215.99,215.97,36.78]
[1757359026046,0.65,215.98,215.93,16.20895659]
[1757359026273,13.59559401,215.96,215.94,36.78]
[1757359026453,13.59559401,215.97,215.94,36.78]
[1757359026763,14.24559401,215.97,215.94,36.78]
[1757359027372,0.65,215.96,215.94,36.78]
[1757359027680,13.59559401,215.95,215.94,36.78]
[1757359027972,14.24559401,215.95,215.94,36.78]
[1757359028165,13.59559401,215.94,215.93,0.03]
[1757359028347,14.24559401,215.94,215.93,36.81]
[1757359028552,14.24559401,215.94,215.93,41.44107853]
[1757359028868,14.24559401,215.97,215.93,41.44107853]
[1757359029065,13.59559401,215.95,215.93,41.44107853]
[1757359029369,14.24559401,215.95,215.93,41.44107853]
[1757359030578,0.66,215.94,215.93,41.44107853]
[1757359030878,0.66,215.94,215.93,36.79]
[1757359031175,160.41753073,215.94,215.93,0.03]
[1757359031361,13.59559401,215.93,215.9,0.03]
[1757359031675,25.25753073,215.91,215.9,0.03]
[1757359032257,25.91753073,215.91,215.9,0.03]
[1757359032478,30.54909017,215.91,215.9,0.03]
[1757359032676,25.91753073,215.91,215.9,0.03]
[1757359032871,14.25559401,215.91,215.9,0.03]
[1757359039059,17.68242876,215.91,215.9,0.03]
[1757359040181,33.97592492,215.91,215.9,0.03]
[1757359040877,33.97592492,215.91,215.88,0.03]
[1757359040878,13.59559401,215.9,215.88,0.03]
[1757359041079,28.68436548,215.89,215.88,0.03]
[1757359041268,33.31635399,215.89,215.88,0.03]
[1757359041469,33.97635399,215.89,215.88,0.03]
[1757359042565,13.59559401,215.85,215.83,36.66]
[1757359042766,17.02242876,215.84,215.83,36.66]
[1757359043063,17.02242876,215.84,215.83,41.76327618]
[1757359043667,134.5,215.88,215.86,26.0]
[1757359043869,0.06,216.01,215.9,26.0]
[1757359044076,3.43638028,215.97,215.91,37.15]
[1757359044278,3.43638028,215.96,215.92,0.47]
[1757359044482,0.72,216.01,215.91,36.68]
[1757359044681,3.43674742,216.0,215.92,0.47]
[1757359044885,3.43674742,215.99,215.92,0.47]
[1757359045081,3.43674742,215.98,215.94,26.0]
[1757359045282,0.06,216.01,215.98,26.0]
[1757359045481,0.06,216.01,215.99,36.72]
[1757359045680,0.06,216.01,215.99,37.19]
[1757359045886,0.06,216.01,216.0,0.47]
[1757359047189,0.06,216.01,215.99,4.62984397]
[1757359047891,13.59559401,216.0,215.98,41.41004277]
[1757359048191,14.25559401,216.0,215.98,41.41004277]
[1757359048381,0.06,216.01,215.98,41.41004277]
[1757359050882,0.06,216.01,215.98,53.45518861]
[1757359051075,0.06,216.01,216.0,26.0]
[1757359051380,0.06,216.05,216.01,26.0]
[1757359051586,0.06,216.05,216.02,36.8]
[1757359051905,0.06,216.05,216.02,37.27]
[1757359052280,0.06,216.05,216.02,36.8]
[1757359053297,0.06,216.05,216.03,4.62898671]
[1757359053791,0.06,216.05,216.03,5.09898671]
[1757359053985,0.06,216.05,216.03,4.62898671]
[1757359059075,0.06,216.05,216.03,5.09898671]
[1757359059281,0.06,216.05,216.04,0.47]
[1757359059789,0.06,216.13,216.06,26.0]
[1757359059984,0.06,216.13,216.1,26.0]
[1757359060184,0.06,216.13,216.11,36.86]
[1757359060784,13.59559401,216.11,216.03,42.20145349]
[1757359061094,13.79559401,216.12,216.04,37.21]
[1757359061278,13.79559401,216.12,216.08,26.0]
[1757359061485,0.2,216.12,216.09,37.25]
[1757359061999,0.2,216.12,216.11,26.0]
[1757359062882,0.2,216.12,216.08,26.0]
[1757359063082,0.2,216.12,216.09,36.92]
[1757359063301,0.2,216.12,216.1,4.62748727]
[1757359066403,13.59559401,216.11,216.1,4.62748727]
[1757359066906,0.2,216.12,216.1,41.48748727]
[1757359068908,13.59559401,216.11,216.1,41.48748727]
[1757359069615,0.71,216.11,216.1,41.48748727]
[1757359069813,0.2,216.12,216.1,41.48748727]
[1757359070001,13.59559401,216.11,216.1,41.48748727]
[1757359071498,0.71,216.11,216.1,41.48748727]
[1757359071693,0.71,216.11,216.09,4.62768359]
[1757359071898,0.2,216.12,216.1,36.8]
[1757359072426,0.2,216.12,216.11,4.62727314]
[1757359073001,14.50559401,216.12,216.11,4.62727314]
[1757359076218,13.79559401,216.12,216.11,4.62727314]
[1757359078320,14.50559401,216.12,216.11,4.62727314]
[1757359079009,13.79559401,216.12,216.11,4.62727314]
[1757359080126,14.50559401,216.12,216.11,4.62727314]
[1757359080321,13.59559401,216.11,216.09,4.62748987]
[1757359080512,13.59559401,216.11,216.1,36.72]
[1757359080817,0.71,216.11,216.1,36.72]
[1757359081403,0.2,216.12,216.1,36.72]
[1757359081604,0.91,216.12,216.11,4.62727314]
[1757359082618,0.2,216.12,216.11,4.62727314]
[1757359083220,14.50559401,216.12,216.11,4.62727314]
[1757359084215,13.79559401,216.12,216.11,4.62727314]
[1757359085107,0.2,216.15,216.11,79.225456]
[1757359085419,0.2,216.18,216.12,0.35]
[1757359085616,1e-08,216.23,216.16,26.0]
[1757359085816,1e-08,216.23,216.13,57.31522139]
[1757359085817,0.71,216.31,216.22,26.0]
[1757359086012,3.42839804,216.3,216.26,30.62406362]
[1757359086205,0.77,216.33,216.26,30.62406362]
[1757359086206,0.06,216.33,216.26,67.40406362]
[1757359086425,0.06,216.33,216.26,79.31422268]
[1757359086636,1e-08,216.33,216.27,0.35]
[1757359086813,1e-08,216.33,216.31,26.0]
[1757359087007,1e-08,216.33,216.32,36.86]
[1757359087213,0.71,216.45,216.35,26.0]
[1757359087521,3.42615912,216.44,216.36,37.19]
[1757359087711,0.71,216.44,216.36,0.35]
[1757359087914,16.7589976,216.42,216.37,32.26]
[1757359088114,13.59559401,216.4,216.37,32.26]
[1757359088313,0.71,216.43,216.37,32.26]
[1757359088520,13.59559401,216.42,216.37,32.26]
[1757359088737,13.59559401,216.4,216.37,32.26]
[1757359090127,13.59559401,216.43,216.4,26.0]
[1757359090325,0.66,216.49,216.44,26.0]
[1757359090508,0.66,216.52,216.45,36.9]
[1757359090941,2.41123421,216.53,216.48,26.0]
[1757359091231,7.7701406,216.62,216.52,26.0]
[1757359091433,0.66,216.6,216.53,36.92]
[1757359091616,6.47721786,216.59,216.45,26.0]
[1757359091811,13.59559401,216.57,216.46,37.31]
[1757359092019,13.59559401,216.57,216.51,26.0]
[1757359092332,2.41042936,216.59,216.52,0.35]
[1757359092541,0.66,216.63,216.53,36.98]
[1757359092720,3.4002152,216.62,216.53,36.98]
[1757359092920,0.66,216.63,216.53,36.98]
[1757359092921,13.59559401,216.6,216.53,36.98]
[1757359093237,21.36573461,216.58,216.49,26.0]
[1757359093423,3.39588417,216.57,216.5,36.98]
[1757359093836,13.59559401,216.58,216.5,36.98]
[1757359094142,13.59559401,216.55,216.53,26.0]
[1757359094338,13.59559401,216.58,216.54,37.0]
[1757359095843,13.59559401,216.56,216.5,26.0]
[1757359096024,13.59559401,216.56,216.51,37.0]
[1757359096222,13.59559401,216.57,216.51,37.0]
[1757359096544,13.95164653,216.61,216.51,37.0]
[1757359096545,2.41009708,216.61,216.54,26.0]
[1757359096732,13.59559401,216.6,216.55,36.98]
[1757359097039,13.59559401,216.61,216.58,26.0]
[1757359097220,13.59559401,216.61,216.48,16.16759582]
[1757359097221,2.40976727,216.66,216.59,37.0]
[1757359097421,2.40976727,216.66,216.6,41.61680517]
[1757359097617,4.61471115,216.7,216.6,41.61680517]
[1757359097835,13.59559401,216.68,216.63,26.0]
[1757359098142,2.40925089,216.72,216.64,37.37]
[1757359098756,2.40925089,216.72,216.65,37.02]
[1757359099053,13.59559401,216.65,216.64,37.0]
[1757359099342,13.59559401,216.65,216.59,26.0]
[1757359099343,0.06,216.61,216.59,26.0]
[1757359099522,0.06,216.61,216.6,37.39]
[1757359100428,0.06,216.63,216.62,26.0]
[1757359100848,0.06,216.63,216.62,26.35]
[1757359101322,0.06,216.63,216.62,37.12]
[1757359101924,0.06,216.63,216.62,37.1]
[1757359102136,0.06,216.63,216.62,37.12]
[1757359102747,13.45264656,216.65,216.62,37.12]
[1757359102944,14.11264656,216.65,216.62,37.12]
[1757359103252,18.72839591,216.65,216.62,37.12]
[1757359103742,0.66,216.7,216.62,41.73635525]
[1757359104236,7.7701406,216.72,216.54,0.2775]
[1757359104237,7.7701406,216.69,216.54,0.2775]
[1757359104436,7.7701406,216.64,216.55,30.26]
[1757359104642,13.59559401,216.63,216.58,26.0]
[1757359104843,14.25559401,216.63,216.59,37.14]
[1757359105039,14.25559401,216.63,216.6,37.14]
[1757359105253,18.87181929,216.63,216.6,37.14]
[1757359105432,13.59559401,216.61,216.6,37.14]
[1757359106154,13.59559401,216.62,216.6,37.14]
[1757359106337,14.25559401,216.61,216.6,37.14]
[1757359107061,14.25559401,216.61,216.54,26.2775]
[1757359107062,13.59559401,216.62,216.57,37.12]
[1757359107636,13.59559401,216.64,216.57,41.73739532]
[1757359107954,13.59559401,216.64,216.57,42.08739532]
[1757359108148,13.59559401,216.64,216.57,41.73739532]
[1757359108327,13.59559401,216.64,216.57,37.12]
[1757359108530,13.59559401,216.64,216.57,41.73743164]
[1757359108938,13.59559401,216.67,216.57,53.2810434]
[1757359109240,18.21097453,216.67,216.57,53.6310434]
[1757359109851,18.21097453,216.67,216.57,42.08743164]
[1757359111037,18.21097453,216.67,216.57,42.0873837]
[1757359111360,13.59559401,216.65,216.57,37.12]
[1757359111542,13.59559401,216.65,216.57,41.73744072]
[1757359112045,13.59559401,216.63,216.57,37.12]
[1757359112556,4.61538052,216.67,216.57,41.73743964]
[1757359112759,13.59559401,216.66,216.57,41.73743964]
[1757359113433,18.21122679,216.66,216.57,41.73743964]
[1757359114754,18.21122679,216.66,216.57,53.2810514]
[1757359115056,13.59559401,216.66,216.57,53.2810514]
[1757359115864,18.21113836,216.66,216.57,53.2810514]
[1757359116046,18.21113836,216.66,216.57,53.3110514]
[1757359116433,18.21113836,216.66,216.57,41.76743964]
[1757359116944,0.66,216.65,216.57,41.76743964]
[1757359117336,11.56989986,216.65,216.57,37.15]
[1757359117545,25.16549387,216.63,216.57,37.15]
[1757359117747,13.59559401,216.61,216.57,37.15]
[1757359117960,14.25559401,216.61,216.57,37.15]
[1757359118169,14.25559401,216.61,216.54,30.64805775]
[1757359118170,13.59559401,216.57,216.54,0.03]
[1757359118453,13.59559401,216.54,216.52,0.03]
[1757359118656,30.44379156,216.53,216.52,0.03]
[1757359118830,13.59559401,216.53,216.52,0.03]
[1757359119570,13.59559401,216.53,216.52,26.03]
[1757359120860,13.59559401,216.53,216.52,31.02851099]
[1757359121355,13.59559401,216.6,216.52,42.57478847]
[1757359121933,13.59559401,216.58,216.52,0.03]
[1757359122144,13.59559401,216.58,216.53,37.16]
[1757359122363,0.7,216.59,216.53,37.16]
[1757359122364,13.59559401,216.56,216.53,37.16]
[1757359122543,13.59559401,216.54,216.52,37.21]
[1757359122867,14.29559401,216.54,216.52,37.21]
[1757359124547,18.91303871,216.57,216.52,37.21]
[1757359124850,0.7,216.56,216.52,37.21]
[1757359125035,13.59559401,216.54,216.52,37.21]
[1757359125545,4.6174447,216.57,216.52,37.21]
[1757359125546,14.29559401,216.56,216.52,37.21]
[1757359125744,13.59559401,216.54,216.52,37.21]
[1757359126653,36.70929239,216.57,216.52,0.03]
[1757359126845,25.86549387,216.53,216.52,0.03]
[1757359127051,13.59559401,216.52,216.45,12.94]
[1757359127237,4.61765792,216.56,216.45,12.94]
[1757359127238,13.59559401,216.49,216.45,12.94]
[1757359127447,13.59559401,216.47,216.45,12.94]
[1757359127638,12.26989986,216.51,216.45,12.94]
[1757359127834,13.59559401,216.5,216.45,12.94]
[1757359128039,0.7,216.49,216.45,12.94]
[1757359128341,39.25009233,216.56,216.45,12.94]
[1757359128342,13.59559401,216.47,216.45,12.94]
[1757359128955,0.7,216.5,216.45,17.55991527]
[1757359129260,0.7,216.5,216.45,12.94]
[1757359129261,13.59559401,216.48,216.45,12.94]
[1757359129558,13.59559401,216.46,216.45,13.2175]
[1757359129848,14.29559401,216.46,216.45,0.2775]
[1757359130562,17.71645055,216.46,216.45,0.2775]
[1757359131160,22.33624173,216.46,216.45,0.2775]
[1757359131739,37.33214068,216.46,216.45,0.2775]
[1757359131948,40.41506396,216.46,216.45,0.2775]
[1757359132151,40.41501336,216.46,216.45,0.2775]
[1757359133346,37.33214068,216.46,216.45,0.2775]
[1757359133955,21.14244964,216.46,216.45,0.2775]
[1757359134157,20.44244964,216.46,216.45,0.2775]
[1757359134456,25.76224082,216.46,216.45,0.3075]
[1757359136359,17.01645055,216.46,216.45,0.3075]
[1757359136559,17.71645055,216.46,216.45,0.3075]
[1757359136761,22.33624173,216.46,216.45,0.3075]
[1757359136933,17.71645055,216.46,216.45,0.3075]
[1757359137138,17.01645055,216.46,216.45,0.3075]
[1757359137553,17.71645055,216.46,216.45,0.3075]
[1757359139347,22.33624173,216.46,216.45,0.3075]
[1757359140143,17.71645055,216.46,216.45,0.3075]
[1757359140655,13.59559401,216.46,216.45,0.3075]
[1757359140961,18.21453865,216.5,216.45,0.3075]
[1757359141161,14.29559401,216.46,216.45,0.3075]
[1757359141345,17.71913642,216.46,216.45,0.3075]
[1757359142369,13.59559401,216.45,216.4,4.19432111]
[1757359142744,14.29559401,216.45,216.4,4.19432111]
[1757359143860,13.59559401,216.43,216.38,30.6213462]
[1757359144157,0.7,216.43,216.38,30.6213462]
[1757359144354,13.59559401,216.42,216.38,30.6213462]
[1757359145049,13.59559401,216.45,216.38,31.0313462]
[1757359145654,18.21567084,216.45,216.38,4.6213462]
[1757359146660,13.59559401,216.45,216.38,4.6213462]
[1757359146857,18.2156177,216.45,216.38,4.6213462]
[1757359147065,13.59559401,216.45,216.38,16.17509423]
[1757359147253,13.59559401,216.41,216.3,0.2]
[1757359147451,25.16549387,216.36,216.3,0.2]
[1757359147766,11.56989986,216.32,216.21,0.41]
[1757359148064,13.59559401,216.31,216.23,26.0]
[1757359148372,13.59559401,216.34,216.24,0.41]
[1757359148558,13.59559401,216.34,216.24,37.77]
[1757359148862,18.21803384,216.34,216.25,4.62427745]
[1757359149366,14.29559401,216.34,216.25,4.62427745]
[1757359149573,18.91804147,216.34,216.25,4.62427745]